bitfinex/quotes_ETHUSD_20251008
["timestamp","ask_amount","ask_price","bid_price","bid_amount"]
[1759925767953,2.22505568,4494.3,4493.8,4.7376]
[1759925768257,2.22505568,4494.3,4494.2,0.1112]
[1759925768862,13.86023396,4494.3,4493.8,4.2916]
[1759925769167,13.86023396,4494.3,4493.3,0.001]
[1759925769168,2.22548626,4493.4,4493.3,0.001]
[1759925769326,2.22548626,4493.4,4493.3,0.151]
[1759925769526,4.58008626,4493.4,4493.3,0.151]
[1759925769949,4.58008626,4493.4,4493.3,0.001]
[1759925770730,5.26063657,4493.4,4493.3,0.001]
[1759925771257,4.82603657,4493.4,4493.3,0.001]
[1759925771429,5.26063657,4493.4,4493.3,0.001]
[1759925772865,5.73872808,4493.4,4493.3,0.001]
[1759925774153,5.94643386,4493.4,4493.3,0.001]
[1759925774488,8.46543386,4493.4,4493.3,0.001]
[1759925776061,8.46551683,4493.4,4493.3,0.001]
[1759925777373,8.25772808,4493.4,4493.3,0.001]
[1759925777572,8.46547722,4493.4,4493.3,0.001]
[1759925778153,8.25772808,4493.4,4493.3,0.001]
[1759925779384,8.34693344,4493.4,4493.3,0.001]
[1759925779558,2.22568439,4493.0,4492.9,0.001]
[1759925779763,4.56025283,4493.0,4492.9,0.001]
[1759925779959,15.01033535,4493.0,4492.9,0.001]
[1759925780166,15.09954071,4493.0,4492.9,0.001]
[1759925781871,5.5621497,4493.0,4492.9,0.001]
[1759925782186,2.22568439,4493.0,4492.9,0.001]
[1759925782354,2.22549852,4493.4,4492.9,0.001]
[1759925782559,0.4346,4493.9,4492.9,0.001]
[1759925782560,0.47850907,4493.8,4492.9,0.001]
[1759925782887,2.22559206,4493.2,4492.9,0.001]
[1759925783670,2.22564732,4493.1,4492.9,0.001]
[1759925783867,2.22568439,4493.0,4492.9,0.001]
[1759925784191,4.58028439,4493.0,4492.9,0.001]
[1759925784784,4.14568439,4493.0,4492.9,0.001]
[1759925785668,1.92,4493.0,4492.9,0.001]
[1759925785866,4.14568439,4493.0,4492.9,0.001]
[1759925789487,4.58028439,4493.0,4492.9,0.001]
[1759925789905,10.77217889,4493.0,4492.9,0.001]
[1759925791002,10.77137889,4493.0,4492.9,0.001]
[1759925791482,7.67543164,4493.0,4492.9,0.001]
[1759925791811,7.24083164,4493.0,4492.9,0.001]
[1759925792108,7.71423164,4493.0,4492.9,0.001]
[1759925794013,10.81017889,4493.0,4492.9,0.001]
[1759925794404,7.71423164,4493.0,4492.9,0.001]
[1759925796890,7.24083164,4493.0,4492.9,0.001]
[1759925797491,7.71423164,4493.0,4492.9,0.001]
[1759925798208,10.81017889,4493.0,4492.9,0.001]
[1759925799398,7.71423164,4493.0,4492.9,0.001]
[1759925805110,10.81217889,4493.0,4492.9,0.001]
[1759925807125,9.03132843,4493.0,4492.9,0.001]
[1759925807328,12.60679827,4493.0,4492.9,0.001]
[1759925807530,2.2259321,4492.5,4492.4,0.001]
[1759925807718,7.35307935,4492.5,4492.4,0.001]
[1759925807924,9.45720315,4492.5,4492.4,0.001]
[1759925808126,9.61720315,4492.5,4492.4,0.001]
[1759925811632,5.01594725,4492.5,4492.4,0.001]
[1759925811837,7.24187935,4492.5,4492.4,0.001]
[1759925812407,7.70597935,4492.5,4492.4,0.001]
[1759925813703,7.24187935,4492.5,4492.4,0.001]
[1759925813955,5.01594725,4492.5,4492.4,0.001]
[1759925814104,5.01594725,4492.5,4492.4,0.1122]
[1759925814834,7.24187935,4492.5,4492.4,0.1122]
[1759925817924,4.1459321,4492.5,4492.4,0.1122]
[1759925818155,7.24187935,4492.5,4492.4,0.1122]
[1759925820036,7.70597935,4492.5,4492.4,0.1122]
[1759925820461,7.24187935,4492.5,4492.4,0.1122]
[1759925822352,5.01594725,4492.5,4492.4,0.1122]
[1759925822556,1.92,4492.5,4492.4,0.37642]
[1759925822725,0.002,4493.0,4492.4,0.71837981]
[1759925822927,1.922,4493.0,4492.4,0.69612]
[1759925823339,4.14768696,4493.0,4492.5,14.5]
[1759925823539,2.22575141,4492.9,4492.6,1.771612]
[1759925823743,1.922,4493.0,4492.4,0.26522]
[1759925823950,4.14769706,4493.0,4492.5,14.5]
[1759925824161,0.002,4492.8,4492.5,14.9309]
[1759925825072,0.002,4492.8,4492.6,0.5809]
[1759925825275,0.002,4492.8,4492.6,2.82900799]
[1759925825476,0.002,4492.8,4492.7,5.0319228]
[1759925825681,0.002,4492.8,4492.7,19.5319228]
[1759925826549,5.32373072,4492.8,4492.7,14.65]
[1759925826773,10.81367797,4492.8,4492.7,0.15]
[1759925827481,2.2259321,4492.5,4492.4,2.52]
[1759925827787,7.24187935,4492.5,4492.4,2.52]
[1759925828369,4.1459321,4492.5,4492.4,2.52]
[1759925828575,7.24187935,4492.5,4492.4,2.52]
[1759925828752,5.01594725,4492.5,4492.4,2.52]
[1759925828952,7.24187935,4492.5,4492.4,2.52]
[1759925829981,7.24187935,4492.5,4492.4,0.001]
[1759925830185,9.01984972,4492.5,4492.4,0.001]
[1759925831477,7.71587935,4492.5,4492.4,0.001]
[1759925831901,7.24187935,4492.5,4492.4,0.001]
[1759925832085,1.92,4492.5,4492.4,0.001]
[1759925832479,2.22583521,4492.7,4492.4,0.001]
[1759925832686,2.22583521,4492.7,4492.4,0.1122]
[1759925833089,2.22583521,4492.7,4492.4,15.0431]
[1759925833297,3.09594725,4492.6,4492.4,15.0431]
[1759925833699,0.002,4492.8,4492.4,16.81185]
[1759925833890,1.92,4492.7,4492.4,16.70065]
[1759925834093,1.92,4492.7,4492.4,16.85065]
[1759925834280,1.92,4492.7,4492.6,0.1112]
[1759925834677,0.002,4492.8,4492.6,0.1112]
[1759925834882,0.002,4492.8,4492.7,2.68267045]
[1759925835207,0.002,4492.8,4492.7,0.4309]
[1759925835420,0.002,4492.8,4492.7,14.9309]
[1759925835809,0.002,4492.8,4492.7,17.4499]
[1759925836611,0.002,4492.8,4492.7,21.7415]
[1759925836815,0.002,4492.8,4492.7,24.11733301]
[1759925837022,0.0012,4492.8,4492.7,24.14327045]
[1759925837689,0.0012,4492.8,4492.7,23.71237045]
[1759925838098,0.0012,4492.8,4492.7,16.90177045]
[1759925838316,2.22698347,4492.8,4492.7,17.019]
[1759925838620,0.0012,4492.8,4492.7,17.019]
[1759925841923,0.0012,4492.8,4492.7,2.519]
[1759925842128,0.0012,4492.8,4492.7,2.9499]
[1759925842325,0.0012,4492.8,4492.7,17.019]
[1759925842530,2.22698347,4492.8,4492.7,17.019]
[1759925842829,2.22583301,4492.7,4492.6,0.1112]
[1759925843030,0.0012,4492.8,4492.6,2.6302]
[1759925843415,0.0012,4492.8,4492.6,17.1302]
[1759925843604,0.0012,4492.8,4492.6,18.84342]
[1759925847620,0.0012,4492.8,4492.7,4.2916]
[1759925851437,2.22698347,4492.8,4492.7,4.2916]
[1759925851748,2.22583301,4492.7,4492.6,0.1112]
[1759925851949,2.22583301,4492.7,4492.6,2.6292]
[1759925851950,2.68253301,4492.7,4492.6,2.6292]
[1759925853051,4.14583301,4492.7,4492.6,0.1112]
[1759925853254,4.14583301,4492.7,4492.4,0.001]
[1759925853255,2.2259321,4492.5,4492.4,0.001]
[1759925853753,2.2260312,4492.3,4492.1,0.01]
[1759925853920,5.7767966,4492.2,4492.1,0.01]
[1759925854122,6.2334966,4492.2,4492.1,0.01]
[1759925854330,7.58750372,4492.2,4492.1,0.01]
[1759925854653,9.81358448,4492.2,4492.1,0.01]
[1759925858760,9.81358448,4492.2,4492.1,0.011]
[1759925860157,5.95678788,4492.2,4492.1,0.011]
[1759925860358,9.81358448,4492.2,4492.1,0.011]
[1759925862462,9.90279741,4492.2,4492.1,0.011]
[1759925862684,7.22001665,4492.2,4492.1,0.011]
[1759925862886,2.00921293,4492.2,4492.1,0.011]
[1759925863176,0.08921293,4492.2,4492.1,0.1222]
[1759925863376,4.14594586,4492.5,4492.1,0.1222]
[1759925863784,2.22598719,4492.4,4492.1,0.011]
[1759925864377,1.92,4492.5,4492.3,0.1112]
[1759925864576,3.8567966,4492.6,4492.3,0.1112]
[1759925864779,3.8567966,4492.6,4492.3,0.5572]
[1759925864980,4.14598165,4492.4,4492.3,0.1112]
[1759925865186,2.22598165,4492.4,4492.3,0.1112]
[1759925866062,2.22608076,4492.2,4492.1,0.011]
[1759925866263,2.22608076,4492.2,4492.1,2.6412]
[1759925868371,8.47477736,4492.2,4492.1,0.011]
[1759925868666,8.91998466,4492.2,4492.1,0.011]
[1759925868870,9.03118466,4492.2,4492.1,0.011]
[1759925873659,9.12040176,4492.2,4492.1,0.011]
[1759925875497,11.46540176,4492.2,4492.1,0.011]
[1759925875700,9.12040176,4492.2,4492.1,0.011]
[1759925875903,4.25728076,4492.2,4492.1,0.011]
[1759925876207,4.25928076,4492.2,4492.1,0.011]
[1759925876364,4.73118076,4492.2,4492.1,0.011]
[1759925880397,8.58797736,4492.2,4492.1,0.011]
[1759925881511,8.11607736,4492.2,4492.1,0.011]
[1759925881712,4.14808076,4492.2,4492.1,0.011]
[1759925881882,4.14808076,4492.2,4492.1,0.1222]
[1759925882309,8.00487736,4492.2,4492.1,0.1222]
[1759925882511,8.45637736,4492.2,4492.1,0.1222]
[1759925883087,8.45557736,4492.2,4492.1,0.1222]
[1759925883288,8.45557736,4492.2,4492.1,4.4138]
[1759925885530,9.52374242,4492.2,4492.1,4.3026]
[1759925886232,10.00296313,4492.2,4492.1,4.3026]
[1759925886532,10.00296313,4492.2,4491.9,0.001]
[1759925886715,2.22617987,4492.0,4491.9,0.001]
[1759925886934,4.62540058,4492.0,4491.9,0.001]
[1759925887136,6.03283352,4492.0,4491.9,0.001]
[1759925887332,6.48433352,4492.0,4491.9,0.001]
[1759925889035,6.03283352,4492.0,4491.9,0.001]
[1759925889235,4.70887987,4492.0,4491.9,0.001]
[1759925889533,5.1880081,4492.0,4491.9,0.001]
[1759925893959,5.27723297,4492.0,4491.9,0.001]
[1759925894133,5.48514293,4492.0,4491.9,0.001]
[1759925898165,5.48514293,4492.0,4490.0,14.5]
[1759925898166,1.92,4491.6,4490.0,14.5]
[1759925898324,6.0026966,4491.2,4490.3,0.1112]
[1759925898524,8.9163112,4491.2,4490.3,0.1112]
[1759925898821,9.4790112,4491.2,4490.3,0.1112]
[1759925899038,2.22677722,4490.8,4490.3,0.1112]
[1759925899327,4.14702269,4490.3,4490.1,0.01]
[1759925899530,2.3715,4490.2,4490.1,0.01]
[1759925899757,4.59857229,4490.2,4490.1,0.01]
[1759925900561,4.59857229,4490.2,4489.5,0.1112]
[1759925900562,2.22736992,4489.6,4489.5,0.1112]
[1759925900771,2.22756838,4489.2,4489.1,0.1212]
[1759925900957,2.33851493,4489.8,4489.1,0.1212]
[1759925900958,3.8567966,4489.3,4489.1,0.1212]
[1759925901159,6.08435445,4489.3,4489.1,0.1212]
[1759925901470,3.8567966,4489.3,4489.1,0.1212]
[1759925901975,2.22756838,4489.2,4489.1,0.1212]
[1759925902961,3.8567966,4489.3,4489.1,0.1212]
[1759925902962,6.08432694,4489.3,4489.1,0.1212]
[1759925903740,2.22756838,4489.2,4489.1,0.1212]
[1759925903949,3.10018999,4489.2,4489.1,0.1212]
[1759925904739,3.10018999,4489.2,4489.1,0.01]
[1759925904951,5.32775837,4489.2,4489.1,0.01]
[1759925906139,5.32695837,4489.2,4489.1,0.01]
[1759925906335,3.10018999,4489.2,4489.1,0.01]
[1759925906639,5.32775837,4489.2,4489.1,0.01]
[1759925907177,3.10018999,4489.2,4489.1,0.01]
[1759925910505,5.32775837,4489.2,4489.1,0.01]
[1759925911584,3.10018999,4489.2,4489.1,0.01]
[1759925912156,5.32775837,4489.2,4489.1,0.01]
[1759925913176,3.10018999,4489.2,4489.1,0.01]
[1759925913563,5.32775837,4489.2,4489.1,0.01]
[1759925914585,5.32775837,4489.2,4489.1,0.1222]
[1759925915885,3.10018999,4489.2,4489.1,0.1222]
[1759925916784,0.2,4489.6,4489.1,0.011]
[1759925916984,1.92,4490.1,4489.1,0.011]
[1759925916985,1.92,4489.4,4489.2,0.2531]
[1759925917155,3.10018999,4489.2,4489.1,0.011]
[1759925917589,3.10018999,4489.2,4489.1,0.1222]
[1759925917884,3.10018999,4489.2,4489.1,2.6422]
[1759925918120,3.10018999,4489.2,4489.1,0.1222]
[1759925918392,3.10018999,4489.2,4489.1,2.6422]
[1759925919678,3.10018999,4489.2,4489.1,0.1222]
[1759925919964,3.10018999,4489.2,4489.1,2.6422]
[1759925920960,3.10018999,4489.2,4489.1,3.0822]
[1759925921165,3.10018999,4489.2,4489.1,2.6422]
[1759925921994,3.10018999,4489.2,4489.1,3.0882]
[1759925922701,3.10018999,4489.2,4489.1,2.6422]
[1759925924372,3.10018999,4489.2,4489.1,0.1222]
[1759925924568,3.10018999,4489.2,4489.1,2.6422]
[1759925925505,3.10018999,4489.2,4489.1,0.1222]
[1759925925711,3.10018999,4489.2,4489.1,2.6422]
[1759925927377,5.32775837,4489.2,4489.1,2.6422]
[1759925927576,3.10018999,4489.2,4489.1,2.6422]
[1759925928181,3.10018999,4489.2,4489.1,0.1222]
[1759925928182,5.32775837,4489.2,4489.1,0.1222]
[1759925928382,5.32775837,4489.2,4489.1,2.6422]
[1759925928613,3.10018999,4489.2,4489.1,2.6422]
[1759925929113,3.09938999,4489.2,4489.1,2.6422]
[1759925931812,3.09938999,4489.2,4489.1,3.0882]
[1759925932524,3.09938999,4489.2,4489.1,0.5682]
[1759925932702,3.09938999,4489.2,4489.1,3.0882]
[1759925933733,3.10138999,4489.2,4489.1,3.0882]
[1759925934312,3.10138999,4489.2,4489.1,2.6422]
[1759925936029,3.10138999,4489.2,4489.1,3.0882]
[1759925936331,3.10138999,4489.2,4489.1,3.11047618]
[1759925936833,0.002,4489.2,4489.1,4.8715238]
[1759925937047,0.002,4489.2,4489.1,4.84924762]
[1759925938153,0.002,4489.2,4489.1,4.40324762]
[1759925938530,0.002,4489.2,4489.1,4.55324762]
[1759925938922,0.002,4489.2,4489.1,4.99924762]
[1759925939821,0.002,4489.2,4489.1,4.55324762]
[1759925940120,0.002,4489.2,4489.1,4.40324762]
[1759925940333,0.002,4489.2,4489.1,2.66447618]
[1759925940527,0.002,4489.2,4489.1,17.16447618]
[1759925940734,0.002,4489.2,4489.1,17.1422]
[1759925941052,0.002,4489.2,4489.1,17.5882]
[1759925942124,0.002,4489.2,4489.1,20.338218]
[1759925942324,0.002,4489.2,4489.1,22.4832398]
[1759925943431,0.002,4489.2,4489.1,22.6332398]
[1759925945251,0.002,4489.2,4489.1,8.1332398]
[1759925945558,0.002,4489.2,4489.1,10.399418]
[1759925945763,0.002,4489.2,4489.1,24.899418]
[1759925947732,0.002,4489.2,4489.1,22.379418]
[1759925947958,0.002,4489.2,4489.1,19.0722]
[1759925947959,3.10218999,4489.2,4489.1,19.0722]
[1759925948142,3.10218999,4489.2,4489.1,22.0382]
[1759925948731,0.002,4489.2,4489.1,24.28997045]
[1759925949154,0.002,4489.2,4489.1,21.76997045]
[1759925949460,0.002,4489.2,4489.1,21.5922]
[1759925949645,0.002,4489.2,4489.1,19.0722]
[1759925949844,2.22956838,4489.2,4489.1,0.2722]
[1759925950035,2.68466838,4489.2,4489.1,0.2722]
[1759925950235,2.68466838,4489.2,4489.1,2.7922]
[1759925950979,2.68466838,4489.2,4489.1,2.6422]
[1759925951182,0.002,4489.2,4489.1,2.6422]
[1759925951466,2.22956838,4489.2,4489.1,2.6422]
[1759925952259,2.22876838,4489.2,4489.1,2.6422]
[1759925952656,0.0012,4489.2,4489.1,2.6422]
[1759925954238,0.0012,4489.2,4489.1,2.90642]
[1759925954457,0.0012,4489.2,4489.1,5.580038]
[1759925955137,0.0012,4489.2,4489.1,6.213638]
[1759925956939,0.0012,4489.2,4489.1,20.713638]
[1759925958751,0.0012,4489.2,4489.1,20.863638]
[1759925960675,0.0012,4489.2,4489.1,25.163638]
[1759925961378,0.0012,4489.2,4489.1,20.863638]
[1759925961973,1e-08,4489.7,4489.2,2.5536]
[1759925962192,1e-08,4489.7,4489.6,2.97216992]
[1759925962392,1e-08,4489.7,4489.6,5.51444361]
[1759925962598,1e-08,4489.7,4489.6,20.43816992]
[1759925963262,1e-08,4489.7,4489.6,20.58816992]
[1759925964070,1e-08,4489.7,4489.6,22.50816992]
[1759925964386,1e-08,4489.7,4489.6,24.75994037]
[1759925965966,1e-08,4489.7,4489.6,25.19672932]
[1759925966166,1e-08,4490.3,4490.2,2.86067229]
[1759925966481,1e-08,4490.3,4490.2,5.41194301]
[1759925966773,1e-08,4490.3,4490.2,21.11076089]
[1759925966997,1e-08,4490.3,4490.2,23.03076089]
[1759925968295,1e-08,4490.3,4490.2,25.34876089]
[1759925968665,1e-08,4490.3,4490.2,17.95816089]
[1759925968866,1e-08,4490.3,4490.2,20.47716089]
[1759925969995,1e-08,4490.3,4490.2,21.11076089]
[1759925970567,1e-08,4490.3,4490.2,15.7310886]
[1759925970805,1e-08,4490.3,4490.2,14.51]
[1759925970980,2.2270227,4490.3,4490.2,14.51]
[1759925971182,1e-08,4490.3,4489.4,0.446]
[1759925971378,2.22715352,4490.1,4489.5,2.519]
[1759925971585,2.22715352,4490.1,4489.6,0.6336]
[1759925971905,2.22715352,4490.1,4489.7,17.019]
[1759925972074,2.22708235,4490.2,4489.7,17.019]
[1759925972274,2.22708235,4490.2,4489.8,0.14]
[1759925972579,2.22708235,4490.2,4489.9,2.519]
[1759925972793,1e-08,4490.3,4489.9,2.519]
[1759925972970,2.22722109,4489.9,4489.8,0.14]
[1759925973176,2.66652109,4489.9,4489.8,0.732]
[1759925973369,2.66652109,4489.9,4489.8,0.14]
[1759925973370,4.80252109,4489.9,4489.8,0.14]
[1759925973613,5.04991626,4489.9,4489.8,1.295]
[1759925974320,5.04991626,4489.9,4489.8,0.14]
[1759925974523,6.16340655,4489.9,4489.8,0.14]
[1759925974690,2.22732031,4489.7,4489.6,2.519]
[1759925975092,4.58662031,4489.7,4489.6,2.519]
[1759925975297,4.58582031,4489.7,4489.6,2.519]
[1759925976819,5.25523977,4489.7,4489.6,2.519]
[1759925976996,5.91875498,4489.7,4489.6,2.519]
[1759925977188,2.22746914,4489.4,4489.3,0.1112]
[1759925977516,4.14751876,4489.3,4489.2,2.519]
[1759925977700,4.58681876,4489.3,4489.2,2.519]
[1759925980322,4.58681876,4489.3,4489.1,2.53]
[1759925980323,2.22756838,4489.2,4489.1,2.53]
[1759925980637,1.92,4489.3,4489.2,0.1112]
[1759925980942,4.14755636,4489.3,4489.2,0.1112]
[1759925981238,0.66941946,4489.7,4489.2,0.82519568]
[1759925981536,6.08492974,4490.2,4489.6,0.1112]
[1759925981733,2.22721059,4490.0,4489.7,2.519]
[1759925982311,2.22724869,4489.9,4489.7,2.519]
[1759925982501,1.92,4490.1,4489.7,2.519]
[1759925982703,2.22722365,4489.9,4489.8,0.1334727]
[1759925983136,2.22722365,4489.9,4489.8,0.1112]
[1759925984421,2.22748975,4489.4,4489.1,0.011]
[1759925984625,2.22736992,4489.6,4489.5,2.519]
[1759925984827,2.67576992,4489.6,4489.5,2.519]
[1759925985033,2.22741953,4489.5,4489.4,0.1112]
[1759925985343,2.67581953,4489.5,4489.4,2.6302]
[1759925985511,4.59581953,4489.5,4489.4,2.519]
[1759925985709,8.45366999,4489.5,4489.4,2.519]
[1759925985911,4.59581953,4489.5,4489.4,2.519]
[1759925986240,8.45366999,4489.5,4489.4,2.519]
[1759925987030,8.00526999,4489.5,4489.4,2.519]
[1759925989431,8.45366999,4489.5,4489.4,2.519]
[1759925993261,8.00526999,4489.5,4489.4,2.519]
[1759925993761,8.45366999,4489.5,4489.4,2.519]
[1759925993940,4.14746914,4489.4,4489.3,0.001]
[1759925994140,4.14746914,4489.4,4489.3,2.52]
[1759925994344,4.59586914,4489.4,4489.3,2.52]
[1759925994957,8.0053196,4489.4,4489.3,2.52]
[1759925995637,8.0053196,4489.4,4489.3,2.6312]
[1759925998372,8.0045196,4489.4,4489.3,2.6312]
[1759925999843,5.77705046,4489.4,4489.3,2.6312]
[1759926000269,2.22924966,4489.9,4489.3,2.89542]
[1759926000476,2.22924966,4489.9,4489.4,14.52227469]
[1759926000477,0.002,4489.9,4489.4,14.52227469]
[1759926000767,4.14741953,4489.5,4489.4,14.5]
[1759926000970,4.14741953,4489.5,4489.4,17.1302]
[1759926001440,4.14741953,4489.5,4489.4,2.6302]
[1759926004181,4.57751953,4489.5,4489.4,2.6302]
[1759926004564,4.57751953,4489.5,4489.4,0.1112]
[1759926004753,5.7107289,4489.5,4489.4,0.1112]
[1759926004959,2.22746914,4489.4,4489.3,0.001]
[1759926005143,4.57756914,4489.4,4489.3,0.001]
[1759926005680,5.24704238,4489.4,4489.3,0.001]
[1759926009483,5.93465228,4489.4,4489.3,0.001]
[1759926009682,7.27704091,4489.4,4489.3,0.001]
[1759926011385,6.58943101,4489.4,4489.3,0.001]
[1759926011554,7.0686602,4489.4,4489.3,0.001]
[1759926011755,6.58943101,4489.4,4489.3,0.001]
[1759926012262,7.0686603,4489.4,4489.3,0.001]
[1759926012454,6.58943101,4489.4,4489.3,0.001]
[1759926012980,7.27652737,4489.4,4489.3,0.001]
[1759926014170,7.068574,4489.4,4489.3,0.001]
[1759926014370,7.27650416,4489.4,4489.3,0.001]
[1759926017981,7.27639093,4489.4,4489.3,0.001]
[1759926018984,9.62139093,4489.4,4489.3,0.001]
[1759926019283,7.27639093,4489.4,4489.3,0.001]
[1759926020488,6.60691769,4489.4,4489.3,0.001]
[1759926021489,6.60611769,4489.4,4489.3,0.001]
[1759926021890,6.39830076,4489.4,4489.3,0.001]
[1759926022188,6.60605102,4489.4,4489.3,0.001]
[1759926023799,6.39830076,4489.4,4489.3,0.001]
[1759926024299,6.60603038,4489.4,4489.3,0.001]
[1759926026103,6.60803038,4489.4,4489.3,0.001]
[1759926026271,6.60802705,4489.4,4489.3,0.001]
[1759926027981,12.81044845,4489.4,4489.3,0.001]
[1759926029397,8.36684912,4489.4,4489.3,0.001]
[1759926030599,11.46805982,4489.4,4489.3,0.001]
[1759926031406,8.36684912,4489.4,4489.3,0.001]
[1759926032476,5.33067984,4489.4,4489.3,0.001]
[1759926032876,7.25067984,4489.4,4489.3,0.001]
[1759926033082,11.78631819,4489.4,4489.3,0.001]
[1759926033708,1.92,4489.3,4488.9,0.001]
[1759926033906,8.43008903,4489.0,4488.9,0.001]
[1759926034312,8.87228903,4489.0,4488.9,0.001]
[1759926034539,2.22789685,4488.6,4488.1,0.01]
[1759926034683,4.14801506,4488.3,4488.1,0.01]
[1759926035084,0.4422,4488.2,4488.1,0.01]
[1759926035297,4.5902647,4488.2,4488.1,0.01]
[1759926035610,7.80441467,4488.2,4488.1,0.01]
[1759926035809,9.4833528,4488.2,4488.1,0.01]
[1759926036314,1.92,4488.1,4486.1,0.01]
[1759926036483,2.22856124,4487.2,4486.6,0.099]
[1759926036884,0.4422,4487.2,4486.6,0.099]
[1759926037586,2.67076124,4487.2,4486.6,0.099]
[1759926040621,4.59076124,4487.2,4486.4,2.52]
[1759926040794,5.6045262,4487.2,4486.4,2.52]
[1759926042316,4.59076124,4487.2,4486.4,2.52]
[1759926044002,4.59076124,4487.2,4486.1,0.01]
[1759926044409,4.59076124,4487.2,4486.3,0.1112]
[1759926044611,4.58996124,4487.2,4486.3,0.1112]
[1759926044794,4.58996124,4487.2,4487.1,0.011]
[1759926045301,4.58996124,4487.2,4486.6,0.001]
[1759926045302,2.22880959,4486.7,4486.6,0.001]
[1759926045502,10.35123099,4486.7,4486.6,0.001]
[1759926045832,11.60922816,4486.7,4486.6,0.001]
[1759926046421,8.50801746,4486.7,4486.6,0.001]
[1759926046621,8.96721746,4486.7,4486.6,0.001]
[1759926047216,10.81043099,4486.7,4486.6,0.001]
[1759926052736,7.70922029,4486.7,4486.6,0.001]
[1759926052931,10.81043099,4486.7,4486.6,0.001]
[1759926053567,7.70922029,4486.7,4486.6,0.001]
[1759926053923,10.81043099,4486.7,4486.6,0.001]
[1759926054139,12.29380134,4486.7,4486.6,0.001]
[1759926054363,9.19259064,4486.7,4486.6,0.001]
[1759926054561,12.29380134,4486.7,4486.6,0.001]
[1759926055944,9.19259064,4486.7,4486.6,0.001]
[1759926057786,9.19259064,4486.7,4486.2,0.001]
[1759926057787,2.22900831,4486.3,4486.2,0.001]
[1759926058071,7.77631984,4486.3,4486.2,0.001]
[1759926058228,8.23551984,4486.3,4486.2,0.001]
[1759926059481,11.33673054,4486.3,4486.2,0.001]
[1759926060235,11.33673054,4486.3,4485.1,0.01]
[1759926060236,1.92,4486.2,4485.1,0.01]
[1759926060438,10.35197638,4485.2,4485.1,0.01]
[1759926060837,10.81117638,4485.2,4485.1,0.01]
[1759926061575,10.81117638,4485.2,4484.1,0.01]
[1759926061576,2.23005218,4484.2,4484.1,0.01]
[1759926061942,4.58015218,4484.2,4484.1,0.01]
[1759926062141,8.55437625,4484.2,4484.1,0.01]
[1759926062448,3.97422407,4484.2,4482.2,0.1118]
[1759926062770,3.1012107,4485.0,4483.3,0.4468]
[1759926062771,4.15025601,4483.8,4483.3,0.4468]
[1759926062985,3.1012107,4483.6,4483.2,14.5]
[1759926063142,3.1012107,4483.6,4483.1,0.16]
[1759926063555,3.1012107,4483.3,4483.1,0.16]
[1759926063755,3.1012107,4483.3,4483.2,14.5]
[1759926063952,5.76181055,4483.3,4483.1,0.01]
[1759926064250,3.1012107,4483.3,4483.1,0.01]
[1759926065058,5.33171519,4483.3,4483.1,0.01]
[1759926065252,3.1012107,4483.3,4483.1,0.01]
[1759926067065,2.2305496,4483.2,4483.1,0.01]
[1759926067261,3.1012107,4483.2,4483.1,0.01]
[1759926067466,3.1004107,4483.2,4483.1,0.01]
[1759926068196,5.3309603,4483.2,4483.1,0.01]
[1759926068426,3.1004107,4483.2,4483.1,0.01]
[1759926068628,5.3309603,4483.2,4483.1,0.01]
[1759926069592,3.1004107,4483.2,4483.1,0.01]
[1759926070120,1.92,4483.6,4483.1,1.7281]
[1759926070323,2.23025571,4483.8,4483.2,0.4468]
[1759926070520,1.92,4483.7,4483.1,0.01]
[1759926070817,1.92,4483.6,4483.2,14.5]
[1759926071016,5.33171055,4483.3,4483.2,14.5]
[1759926071219,5.33171055,4483.3,4483.2,2.521]
[1759926071422,2.2305496,4483.2,4483.1,0.01]
[1759926071597,4.5806496,4483.2,4483.1,0.01]
[1759926072128,4.1505496,4483.2,4483.1,0.01]
[1759926072907,4.5806496,4483.2,4483.1,0.01]
[1759926073292,5.57188102,4483.2,4483.1,0.01]
[1759926073492,4.5806496,4483.2,4483.1,0.01]
[1759926074295,4.5806496,4483.2,4482.1,0.01]
[1759926074296,6.0593107,4483.2,4482.1,0.01]
[1759926074523,7.25225795,4482.2,4482.1,0.1212]
[1759926074824,1.92,4482.2,4482.1,0.1212]
[1759926075704,4.15104725,4482.2,4482.1,2.6492]
[1759926076418,4.58114725,4482.2,4482.1,0.1212]
[1759926077123,1.92,4482.2,4482.1,0.1212]
[1759926077908,4.15104725,4482.2,4482.1,0.1212]
[1759926078429,1.92,4482.2,4482.1,0.1212]
[1759926078924,4.15104725,4482.2,4482.1,0.1212]
[1759926079127,1.92,4482.2,4482.1,0.1212]
[1759926079424,1.92,4482.2,4482.1,0.568]
[1759926079725,1.92,4482.2,4482.1,0.1212]
[1759926080131,1.92,4482.2,4482.1,0.1222]
[1759926080729,5.0212107,4482.2,4482.1,0.1222]
[1759926080936,0.002,4483.3,4482.1,0.4319]
[1759926081101,0.002,4483.3,4482.2,0.4468]
[1759926081301,1.922,4483.3,4483.1,0.1112]
[1759926081506,0.002,4483.3,4483.1,3.086]
[1759926081753,0.002,4483.3,4483.2,1.0804]
[1759926081902,0.002,4483.3,4483.2,0.80764]
[1759926082102,0.002,4483.3,4483.2,2.9738]
[1759926082301,0.002,4483.3,4483.2,17.4738]
[1759926083110,0.002,4483.3,4483.2,14.5]
[1759926083451,0.002,4483.3,4483.2,17.027]
[1759926084105,2.23249985,4483.3,4483.2,14.5]